fUST/lending_fUST_20250301
["ID","MTS","AMOUNT","RATE_DAILY","PERIOD"]
[354878717,1740767452563,-500.0,0.00049589,120]
[354878718,1740767452573,-504.18637491,0.00049589,120]
[354878719,1740767452582,-500.0,0.00049589,120]
[354878720,1740767452595,-500.0,0.00049589,120]
[354878721,1740767452604,-500.0,0.00049589,120]
[354878722,1740767452614,-500.0,0.00049589,120]
[354878723,1740767452623,-500.0,0.00049589,120]
[354878724,1740767452633,-500.0,0.00049589,120]
[354878725,1740767452642,-1197.98,0.00049589,120]
[354878726,1740767452651,-500.0,0.00049589,120]
[354878727,1740767452660,-500.0,0.00049589,120]
[354878728,1740767452669,-537.94,0.00049589,120]
[354878729,1740767452682,-668.04,0.00049589,120]
[354878730,1740767452692,-500.0,0.00049589,120]
[354878731,1740767452702,-500.0,0.00049589,120]
[354878732,1740767452712,-500.0,0.00049589,120]
[354878733,1740767452722,-717.28,0.00049589,120]
[354878734,1740767452731,-2492.41,0.00049589,120]
[354878735,1740767452740,-500.0,0.00049589,10]
[354878736,1740767452750,-500.0,0.00049589,120]
[354878737,1740767452760,-500.0,0.00049589,120]
[354878738,1740767452770,-500.0,0.00049589,120]
[354878739,1740767452779,-500.0,0.00049589,120]
[354878740,1740767452789,-862.32,0.00049589,120]
[354878741,1740767452798,-500.0,0.00049589,120]
[354878742,1740767452807,-500.0,0.00049589,120]
[354878743,1740767452817,-1027.75,0.00049589,120]
[354878744,1740767452827,-1239.7,0.00049589,120]
[354878745,1740767452836,-500.0,0.00049589,120]
[354878746,1740767452845,-500.0,0.00049589,120]
[354878747,1740767452854,-500.0,0.00049589,120]
[354878748,1740767452864,-500.0,0.00049589,120]
[354878749,1740767452873,-500.0,0.00049589,120]
[354878750,1740767452882,-500.0,0.00049589,120]
[354878751,1740767452892,-1799.06,0.00049589,120]
[354878752,1740767452901,-500.0,0.00049589,120]
[354878753,1740767452910,-2879.57,0.00049589,120]
[354878754,1740767452920,-676.76,0.00049589,120]
[354878755,1740767452930,-500.0,0.00049589,120]
[354878756,1740767452939,-500.0,0.00049589,120]
[354878757,1740767452948,-411.46420398,0.00049589,20]
[354878758,1740767452958,-500.0,0.00049589,120]
[354878759,1740767452969,-500.0,0.00049589,120]
[354878760,1740767452979,-1310.76,0.00049589,120]
[354878761,1740767452988,-861.01,0.00049589,120]
[354878762,1740767452997,-500.0,0.00049589,120]
[354878763,1740767453007,-941.54,0.00049589,120]
[354878764,1740767453017,-500.0,0.00049589,120]
[354878765,1740767453026,-500.0,0.00049589,120]
[354878766,1740767453036,-500.0,0.00049589,120]
[354878767,1740767453048,-500.0,0.00049589,120]
[354878768,1740767453058,-500.0,0.00049589,120]
[354878769,1740767453067,-500.0,0.00049589,120]
[354878770,1740767453077,-500.0,0.00049589,120]
[354878771,1740767453086,-500.0,0.00049589,120]
[354878772,1740767453096,-500.0,0.00049589,120]
[354878773,1740767453106,-822.17,0.00049589,120]
[354878774,1740767453116,-644.42,0.00049589,120]
[354878775,1740767453126,-500.0,0.00049589,120]
[354878776,1740767453135,-500.0,0.00049589,120]
[354878777,1740767453144,-503.86291546,0.00049589,120]
[354878778,1740767453154,-500.0,0.00049589,120]
[354878779,1740767453163,-500.0,0.00049589,120]
[354878780,1740767453173,-500.0,0.00049589,120]
[354878781,1740767453182,-500.0,0.00049589,120]
[354878782,1740767453191,-548.70564214,0.00049589,120]
[354878783,1740767453201,-500.0,0.00049589,120]
[354878784,1740767453210,-500.0,0.00049589,120]
[354878785,1740767453220,-500.0,0.00049589,120]
[354878786,1740767453230,-500.0,0.00049589,120]
[354878787,1740767453239,-501.30771542,0.00049589,120]
[354878788,1740767453250,-500.0,0.00049589,120]
[354878789,1740767453259,-500.0,0.00049589,120]
[354878790,1740767453269,-500.0,0.00049589,120]
[354878791,1740767453279,-504.45,0.00049589,120]
[354878792,1740767453288,-500.0,0.00049589,120]
[354878793,1740767453298,-500.0,0.00049589,120]
[354878794,1740767453308,-500.0,0.00049589,120]
[354878795,1740767453318,-1615.11,0.00049589,120]
[354878796,1740767453327,-500.0,0.00049589,120]
[354878797,1740767453337,-500.0,0.00049589,120]
[354878798,1740767453348,-505.85719992,0.00049589,120]
[354878799,1740767453358,-1000.0,0.00049589,120]
[354878800,1740767453368,-500.0,0.00049589,120]
[354878801,1740767453378,-500.0,0.00049589,120]
[354878802,1740767453388,-500.0,0.00049589,120]
[354878803,1740767453398,-500.0,0.00049589,120]
[354878804,1740767453408,-500.0,0.00049589,120]
[354878805,1740767453417,-500.0,0.00049589,120]
[354878806,1740767453429,-501.950309,0.00049589,120]
[354878807,1740767453439,-500.0,0.00049589,120]
[354878808,1740767453448,-500.0,0.00049589,120]
[354878809,1740767453458,-500.0,0.00049589,120]
[354878810,1740767453467,-500.0,0.00049589,120]
[354878811,1740767453477,-578.78893434,0.00049589,120]
[354878812,1740767453487,-500.0,0.00049589,120]
[354878813,1740767453496,-892.36,0.00049589,120]
[354878814,1740767453506,-500.0,0.00049589,120]
[354878815,1740767453516,-1145.89,0.00049589,120]
[354878816,1740767453525,-500.0,0.00049589,120]
[354878817,1740767453535,-1293.49,0.00049589,120]
[354878818,1740767453544,-3012.64525013,0.00049589,120]
[354878819,1740767453558,-1698.42,0.00049589,120]
[354878820,1740767453567,-2893.37,0.00049589,120]
[354878821,1740767453577,-500.0,0.00049589,120]
[354878822,1740767453586,-500.0,0.00049589,120]
[354878823,1740767453596,-500.0,0.00049589,120]
[354878824,1740767453729,-500.0,0.00049589,120]
[354878825,1740767453752,-500.0,0.00049589,120]
[354878826,1740767453762,-1455.26,0.00049589,120]
[354878827,1740767453773,-726.28,0.00049589,120]
[354878828,1740767453783,-500.0,0.00049589,120]
[354878829,1740767453793,-500.0,0.00049589,120]
[354878830,1740767453802,-2398.71,0.00049589,120]
[354878831,1740767453812,-1726.81,0.00049589,120]
[354878832,1740767453821,-1257.58,0.00049589,120]
[354878833,1740767453830,-500.0,0.00049589,120]
[354878834,1740767453840,-500.0,0.00049589,120]
[354878835,1740767453850,-520.55,0.00049589,120]
[354878836,1740767453859,-1886.81,0.00049589,120]
[354878837,1740767453868,-500.0,0.00049589,120]
[354878838,1740767453878,-500.0,0.00049589,120]
[354878839,1740767453888,-500.0,0.00049589,120]
[354878840,1740767453897,-771.29,0.00049589,120]
[354878841,1740767453907,-500.0,0.00049589,120]
[354878842,1740767453916,-500.0,0.00049589,120]
[354878843,1740767453928,-620.2,0.00049589,120]
[354878844,1740767453938,-1108.52,0.00049589,120]
[354878845,1740767453947,-617.64,0.00049589,120]
[354878846,1740767453957,-500.0,0.00049589,120]
[354878847,1740767453967,-1732.87,0.00049589,120]
[354878848,1740767453977,-500.0,0.00049589,120]
[354878849,1740767453986,-500.0,0.00049589,30]
[354878850,1740767453995,-500.0,0.00049589,120]
[354878851,1740767454005,-500.0,0.00049589,120]
[354878852,1740767454014,-500.0,0.00049589,120]
[354878853,1740767454024,-500.0,0.00049589,120]
[354878854,1740767454033,-500.0,0.00049589,120]
[354878855,1740767454042,-500.0,0.00049589,120]
[354878856,1740767454051,-500.0,0.00049589,120]
[354878857,1740767454060,-500.0,0.00049589,120]
[354878858,1740767454070,-500.0,0.00049589,120]
[354878859,1740767454079,-680.43,0.00049589,120]
[354878860,1740767454091,-500.0,0.00049589,120]
[354878861,1740767454101,-500.0,0.00049589,120]
[354878862,1740767454110,-500.0,0.00049589,120]
[354878863,1740767454119,-500.0,0.00049589,120]
[354878864,1740767454131,-500.0,0.00049589,120]
[354878865,1740767454141,-501.83269426,0.00049589,120]
[354878866,1740767454151,-500.0,0.00049589,120]
[354878867,1740767454161,-640.23448421,0.00049589,120]
[354878868,1740767454170,-500.0,0.00049589,120]
[354878869,1740767454181,-501.7005629,0.00049589,120]
[354878870,1740767454191,-535.66,0.00049589,120]
[354878871,1740767454200,-500.0,0.00049589,120]
[354878872,1740767454209,-500.0,0.00049589,120]
[354878873,1740767454219,-500.0,0.00049589,120]
[354878874,1740767454228,-300.53391292,0.00049589,120]
[354878875,1740767454237,-500.0,0.00049589,120]
[354878876,1740767454247,-500.0,0.00049589,120]
[354878877,1740767454256,-500.0,0.00049589,120]
[354878878,1740767454265,-1508.18,0.00049589,120]
[354878879,1740767454274,-500.0,0.00049589,120]
[354878880,1740767454283,-500.0,0.00049589,120]
[354878881,1740767454293,-500.0,0.00049589,120]
[354878882,1740767454302,-500.0,0.00049589,120]
[354878883,1740767454311,-500.0,0.00049589,120]
[354878884,1740767454320,-500.0,0.00049589,120]
[354878885,1740767454330,-2045.56,0.00049589,120]
[354878886,1740767454340,-500.0,0.00049589,120]
[354878887,1740767454350,-500.0,0.00049589,120]
[354878888,1740767454359,-500.0,0.00049589,120]
[354878889,1740767454368,-500.0,0.00049589,120]
[354878890,1740767454378,-500.0,0.00049589,120]
[354878891,1740767454387,-500.0,0.00049589,120]
[354878892,1740767454397,-835.3,0.00049589,120]
[354878893,1740767454407,-2905.75,0.00049589,120]
[354878894,1740767454417,-500.0,0.00049589,120]
[354878895,1740767454429,-500.0,0.00049589,120]
[354878896,1740767454439,-512.9284441,0.00049589,120]
[354878897,1740767454448,-652.54,0.00049589,120]
[354878898,1740767454458,-500.0,0.00049589,120]
[354878899,1740767454467,-500.0,0.00049589,120]
[354878900,1740767454476,-178.0316585,0.00049589,120]
[354878901,1740767454485,-500.0,0.00049589,120]
[354878902,1740767454495,-500.0,0.00049589,120]
[354878903,1740767454504,-500.0,0.00049589,120]
[354878904,1740767454514,-500.0,0.00049589,120]
[354878905,1740767454523,-3799.75,0.00049589,120]
[354878906,1740767454533,-558.12,0.00049589,120]
[354878907,1740767454542,-500.0,0.00049589,120]
[354878908,1740767454552,-500.0,0.00049589,120]
[354878909,1740767454562,-500.0,0.00049589,120]
[354878910,1740767454572,-500.0,0.00049589,120]
[354878911,1740767454582,-500.0,0.00049589,120]
[354878912,1740767454594,-500.0,0.00049589,120]
[354878913,1740767454604,-500.0,0.00049589,120]
[354878914,1740767454613,-500.0,0.00049589,120]
[354878915,1740767454623,-408.68699391,0.00049589,120]
[354878916,1740767454633,-500.0,0.00049589,120]
[354878917,1740767454643,-500.0,0.00049589,120]
[354878918,1740767454652,-500.0,0.00049589,120]
[354878919,1740767454661,-500.0,0.00049589,120]
[354878920,1740767454673,-500.0,0.00049589,120]
[354878921,1740767454682,-500.0,0.00049589,120]
[354878922,1740767454691,-500.0,0.00049589,120]
[354878923,1740767454700,-948.42,0.00049589,120]
[354878924,1740767454709,-898.03,0.00049589,120]
[354878925,1740767454720,-500.0,0.00049589,120]
[354878926,1740767454729,-500.0,0.00049589,120]
[354878927,1740767454738,-500.0,0.00049589,120]
[354878928,1740767454748,-500.0,0.00049589,120]
[354878929,1740767454757,-500.0,0.00049589,120]
[354878930,1740767454766,-500.0,0.00049589,120]
[354878931,1740767454775,-1618.68,0.00049589,120]
[354878932,1740767454784,-895.03,0.00049589,120]
[354878933,1740767454794,-500.0,0.00049589,120]
[354878934,1740767454803,-902.33,0.00049589,120]
[354878935,1740767454812,-500.0,0.00049589,120]
[354878936,1740767454821,-500.0,0.00049589,21]
[354878937,1740767454830,-240.36871371,0.00049589,120]
[354878938,1740767454839,-500.0,0.00049589,120]
[354878939,1740767454850,-796.84,0.00049589,120]
[354878940,1740767454859,-500.0,0.00049589,120]
[354878941,1740767454868,-500.0,0.00049589,120]
[354878942,1740767454877,-500.0,0.00049589,120]
[354878943,1740767454886,-500.0,0.00049589,120]
[354878944,1740767454895,-500.0,0.00049589,120]
[354878945,1740767454904,-500.0,0.00049589,120]
[354878946,1740767454914,-500.0,0.00049589,120]
[354878947,1740767454923,-2201.06,0.00049589,120]
[354878948,1740767454933,-500.0,0.00049589,7]
[354878949,1740767454942,-500.0,0.00049589,120]
[354878950,1740767454951,-899.83,0.00049589,120]
[354878951,1740767454960,-1718.12,0.00049589,120]
[354878952,1740767454969,-2708.77,0.00049589,120]
[354878953,1740767454978,-500.0,0.00049589,120]
[354878954,1740767454987,-1475.16,0.00049589,120]
[354878955,1740767454996,-500.0,0.00049589,120]
[354878956,1740767455007,-500.0,0.00049589,120]
[354878957,1740767455017,-500.0,0.00049589,120]
[354878958,1740767455026,-500.0,0.00049589,120]
[354878959,1740767455035,-500.0,0.00049589,120]
[354878960,1740767455044,-500.0,0.00049589,120]
[354878961,1740767455054,-911.71,0.00049589,120]
[354878962,1740767455063,-500.0,0.00049589,120]
[354878963,1740767455072,-500.0,0.00049589,120]
[354878964,1740767455081,-1488.36,0.00049589,120]
[354878965,1740767455090,-500.0,0.00049589,120]
[354878966,1740767455099,-109441.47612116,0.00049589,7]
[354878967,1740767531125,160.0,0.0002,3]
[354878968,1740767869465,4000.0,0.0002,2]
[354878969,1740767880056,8228.75,0.0002,2]
[354878973,1740768313606,19618.25597294,0.00026,3]
[354878981,1740768548178,-193.566887,0.00032877,2]
[354879000,1740768636510,-250.0,0.00036922,2]
[354879001,1740768636520,-550.0,0.0004103,5]
[354879002,1740768636530,-16088.20000002,0.00041031,2]
[354879011,1740768638482,-3530.05597292,0.00041031,2]
[354879012,1740768638492,-150.81,0.00041809,2]
[354879013,1740768638502,-150.81,0.00041809,2]
[354879014,1740768638512,-150.81,0.00041809,2]
[354879015,1740768638522,-150.81,0.00041809,2]
[354879016,1740768638532,-19159.0154759,0.00041819,2]
[354879017,1740768638541,-157.91753427,0.00043427,28]
[354879018,1740768638551,-346.53917116,0.00043527,120]
[354879019,1740768638561,-160.3340534,0.00043627,2]
[354879020,1740768638570,-201.17385718,0.000439,9]
[354879021,1740768638580,-201.17385702,0.00044855,10]
[354879022,1740768638590,-157.91753427,0.00045242,28]
[354879023,1740768638601,-346.53917113,0.00045702,120]
[354879024,1740768638611,-201.17385702,0.00045809,10]
[354879025,1740768638621,-201.17385702,0.00046764,10]
[354879026,1740768638630,-157.91753427,0.00047057,28]
[354879027,1740768638640,-150.81,0.00047708,2]
[354879028,1740768638651,-201.17385702,0.00047718,11]
[354879029,1740768638661,-346.53917113,0.00047878,120]
[354879030,1740768638671,-14381.13386485,0.00047878,3]
[354879031,1740768638680,-14381.13386485,0.00047878,2]
[354879032,1740768638689,-516.52574689,0.0004853,2]
[354879033,1740768638699,-2072.79847764,0.0004853,2]
[354879034,1740768638708,-201.17385702,0.00048673,11]
[354879035,1740768638718,-800.0,0.00048824,14]
[354879036,1740768638729,-157.91753427,0.00048872,28]
[354879037,1740768638738,-150.81,0.0004889,2]
[354879038,1740768638748,-508.2716457,0.000489,2]
[354879039,1740768638757,-200.0,0.0004892,80]
[354879040,1740768638768,-508.2716457,0.00048979,2]
[354879041,1740768638778,-150.81,0.0004898,2]
[354879042,1740768638788,-151.0,0.00048985,2]
[354879043,1740768638798,-500.0,0.00048985,2]
[354879044,1740768638808,-19618.25597294,0.0004899,10]
[354879045,1740768638818,-500.0,0.00048999,2]
[354879046,1740768638828,-500.0,0.00048999,2]
[354879047,1740768638837,-500.0,0.00048999,2]
[354879048,1740768638847,-500.0,0.00048999,2]
[354879049,1740768638857,-500.0,0.00048999,2]
[354879050,1740768638866,-513.588977,0.00048999,2]
[354879051,1740768638876,-1000.0,0.00049,120]
[354879052,1740768638886,-1000.0,0.00049,120]
[354879053,1740768638896,-1000.0,0.00049,120]
[354879054,1740768638907,-1000.0,0.00049,120]
[354879055,1740768638917,-1000.0,0.00049,120]
[354879056,1740768638926,-1000.0,0.00049,120]
[354879057,1740768638936,-1000.0,0.00049,120]
[354879058,1740768638946,-91406.352,0.00049,120]
[354879059,1740768638956,-1000.0,0.00049,120]
[354879060,1740768638965,-250.00000198,0.00049,120]
[354879061,1740768638974,-500.0,0.00049,120]
[354879062,1740768638984,-222000.0,0.00049015,2]
[354879063,1740768638997,-508.2716457,0.00049058,2]
[354879064,1740768639007,-2627.83,0.000491,30]
[354879065,1740768639017,-1137.27,0.000491,30]
[354879066,1740768639027,-508.2716457,0.00049136,2]
[354879067,1740768639037,-508.2716457,0.00049215,2]
[354879068,1740768639047,-3000.0,0.00049215,2]
[354879069,1740768639056,-43055.04448819,0.00049215,120]
[354879070,1740768639065,-278.85733289,0.00049314,31]
[354879071,1740768639075,-500.0,0.00049315,120]
[354879072,1740768639085,-500.0,0.00049315,120]
[354879073,1740768639094,-500.0,0.00049315,120]
[354879074,1740768639104,-360.95982891,0.00049315,120]
[354879075,1740768639114,-500.0,0.00049315,120]
[354879076,1740768639123,-500.0,0.00049315,120]
[354879077,1740768639133,-500.0,0.00049315,120]
[354879078,1740768639143,-332.4450342,0.00049315,120]
[354879079,1740768639155,-500.1922893,0.00049315,120]
[354879080,1740768639165,-500.0,0.00049315,120]
[354879081,1740768639174,-500.0,0.00049315,120]
[354879082,1740768639184,-317.29192197,0.00049315,120]
[354879083,1740768639194,-500.0,0.00049315,120]
[354879084,1740768639204,-500.0,0.00049315,120]
[354879085,1740768639214,-500.0,0.00049315,120]
[354879086,1740768639223,-500.0,0.00049315,120]
[354879087,1740768639233,-500.0,0.00049315,120]
[354879088,1740768639243,-500.0,0.00049315,120]
[354879089,1740768639252,-500.0,0.00049315,120]
[354879090,1740768639262,-500.0,0.00049315,120]
[354879091,1740768639272,-504.44826958,0.00049315,15]
[354879092,1740768639282,-502.73350824,0.00049315,120]
[354879093,1740768639292,-414.7859466,0.00049315,120]
[354879094,1740768639303,-500.0,0.00049315,120]
[354879095,1740768639313,-500.0,0.00049315,120]
[354879096,1740768639323,-500.0,0.00049315,120]
[354879097,1740768639332,-500.0,0.00049315,120]
[354879098,1740768639342,-1049.9,0.00049315,120]
[354879099,1740768639351,-500.0,0.00049315,120]
[354879100,1740768639360,-500.0,0.00049315,120]
[354879101,1740768639370,-500.0,0.00049315,120]
[354879102,1740768639379,-500.0,0.00049315,120]
[354879103,1740768639389,-500.0,0.00049315,120]
[354879104,1740768639402,-500.0,0.00049315,120]
[354879105,1740768639411,-500.0,0.00049315,120]
[354879106,1740768639421,-500.0,0.00049315,120]
[354879107,1740768639430,-500.0,0.00049315,120]
[354879108,1740768639439,-500.0,0.00049315,120]
[354879109,1740768639449,-500.0,0.00049315,120]
[354879110,1740768639458,-500.0,0.00049315,120]
[354879111,1740768639467,-537.15468903,0.00049315,120]
[354879112,1740768639477,-500.0,0.00049315,120]
[354879113,1740768639486,-501.65380182,0.00049315,120]
[354879114,1740768639495,-500.0,0.00049315,120]
[354879115,1740768639504,-1067.1,0.00049315,120]
[354879116,1740768639514,-500.0,0.00049315,120]
[354879117,1740768639524,-500.0,0.00049315,120]
[354879118,1740768639534,-500.0,0.00049315,120]
[354879119,1740768639543,-500.0,0.00049315,120]
[354879120,1740768639553,-737.37,0.00049315,120]
[354879121,1740768639562,-500.0,0.00049315,120]
[354879122,1740768639572,-523.17,0.00049315,120]
[354879123,1740768639582,-508.10651886,0.00049315,120]
[354879124,1740768639591,-500.87203852,0.00049315,120]
[354879125,1740768639600,-500.0,0.00049315,120]
[354879126,1740768639610,-2350.42,0.00049315,120]
[354879127,1740768639620,-500.0,0.00049315,120]
[354879128,1740768639630,-500.0,0.00049315,120]
[354879129,1740768639639,-500.0,0.00049315,120]
[354879130,1740768639649,-500.0,0.00049315,120]
[354879131,1740768639659,-500.0,0.00049315,120]
[354879132,1740768639668,-500.0,0.00049315,120]
[354879133,1740768639677,-219.70645374,0.00049315,120]
[354879134,1740768639687,-500.0,0.00049315,120]
[354879135,1740768639703,-500.0,0.00049315,120]
[354879136,1740768639718,-500.0,0.00049315,120]
[354879137,1740768639734,-618.11,0.00049315,120]
[354879139,1740768639746,-500.0,0.00049315,120]
[354879140,1740768639761,-500.0,0.00049315,120]
[354879141,1740768639775,-500.0,0.00049315,120]
[354879142,1740768639788,-501.40887813,0.00049315,120]
[354879143,1740768639803,-500.0,0.00049315,120]
[354879144,1740768639818,-500.0,0.00049315,120]
[354879145,1740768639833,-500.0,0.00049315,10]
[354879146,1740768639846,-500.0,0.00049315,120]
[354879147,1740768639860,-251.33228994,0.00049315,120]
[354879149,1740768639873,-500.0,0.00049315,120]
[354879150,1740768639888,-500.0,0.00049315,120]
[354879151,1740768639902,-250.0,0.00049315,120]
[354879152,1740768639915,-500.0,0.00049315,120]
[354879153,1740768639926,-500.0,0.00049315,120]
[354879154,1740768639940,-315.44772992,0.00049315,120]
[354879155,1740768639953,-500.0,0.00049315,120]
[354879156,1740768639967,-500.0,0.00049315,120]
[354879157,1740768639980,-500.0,0.00049315,120]
[354879158,1740768639999,-500.0,0.00049315,120]
[354879160,1740768640014,-503.70447843,0.00049315,120]
[354879161,1740768640028,-500.0,0.00049315,120]
[354879162,1740768640039,-500.0,0.00049315,120]
[354879163,1740768640051,-500.0,0.00049315,120]
[354879164,1740768640063,-500.0,0.00049315,120]
[354879165,1740768640079,-500.0,0.00049315,120]
[354879166,1740768640092,-500.0,0.00049315,120]
[354879167,1740768640103,-817.99,0.00049315,120]
[354879168,1740768640115,-500.0,0.00049315,120]
[354879170,1740768640130,-500.0,0.00049315,120]
[354879171,1740768640143,-500.0,0.00049315,120]
[354879172,1740768640157,-790.76,0.00049315,120]
[354879173,1740768640168,-500.0,0.00049315,120]
[354879174,1740768640180,-500.0,0.00049315,120]
[354879175,1740768640192,-500.0,0.00049315,120]
[354879176,1740768640204,-527.09214301,0.00049315,120]
[354879177,1740768640216,-500.0,0.00049315,120]
[354879178,1740768640231,-1277.78,0.00049315,120]
[354879179,1740768640244,-500.0,0.00049315,120]
[354879181,1740768640255,-1310.7,0.00049315,120]
[354879183,1740768640267,-500.0,0.00049315,120]
[354879184,1740768640279,-500.0,0.00049315,120]
[354879185,1740768640290,-500.0,0.00049315,120]
[354879186,1740768640302,-500.0,0.00049315,120]
[354879187,1740768640314,-691.17,0.00049315,120]
[354879188,1740768640326,-500.0,0.00049315,120]
[354879189,1740768640338,-500.0,0.00049315,120]
[354879190,1740768640350,-500.0,0.00049315,120]
[354879191,1740768640363,-500.0,0.00049315,120]
[354879193,1740768640375,-500.0,0.00049315,120]
[354879195,1740768640387,-500.0,0.00049315,120]
[354879198,1740768640399,-500.0,0.00049315,120]
[354879200,1740768640413,-500.0,0.00049315,120]
[354879202,1740768640425,-500.0,0.00049315,120]
[354879204,1740768640437,-500.0,0.00049315,120]
[354879206,1740768640448,-1000.0,0.00049315,120]
[354879208,1740768640460,-500.0,0.00049315,120]
[354879211,1740768640473,-860.04,0.00049315,120]
[354879213,1740768640484,-500.0,0.00049315,120]
[354879215,1740768640496,-500.0,0.00049315,120]
[354879217,1740768640508,-589.31,0.00049315,120]
[354879220,1740768640520,-188.17121644,0.00049315,120]
[354879222,1740768640532,-500.0,0.00049315,120]
[354879224,1740768640543,-500.0,0.00049315,120]
[354879226,1740768640555,-500.0,0.00049315,120]
[354879229,1740768640567,-500.0,0.00049315,120]
[354879231,1740768640579,-500.0,0.00049315,120]
[354879233,1740768640592,-1630.31,0.00049315,120]
[354879235,1740768640603,-500.0,0.00049315,120]
[354879238,1740768640615,-500.0,0.00049315,120]
[354879240,1740768640627,-500.0,0.00049315,120]
[354879242,1740768640639,-1643.54,0.00049315,120]
[354879244,1740768640653,-506.15338275,0.00049315,120]
[354879247,1740768640665,-500.0,0.00049315,120]
[354879249,1740768640678,-500.0,0.00049315,120]
[354879251,1740768640689,-500.0,0.00049315,120]
[354879254,1740768640702,-890.69,0.00049315,120]
[354879256,1740768640714,-500.0,0.00049315,120]
[354879258,1740768640725,-500.0,0.00049315,120]
[354879260,1740768640738,-500.0,0.00049315,120]
[354879263,1740768640749,-209.75557909,0.00049315,120]
[354879265,1740768640761,-500.0,0.00049315,120]
[354879267,1740768640773,-511.61,0.00049315,120]
[354879269,1740768640785,-500.0,0.00049315,120]
[354879271,1740768640798,-500.0,0.00049315,120]
[354879274,1740768640810,-500.0,0.00049315,120]
[354879276,1740768640823,-500.0,0.00049315,120]
[354879278,1740768640835,-500.0,0.00049315,120]
[354879280,1740768640847,-541.47576483,0.00049315,120]
[354879283,1740768640859,-500.0,0.00049315,120]
[354879285,1740768640871,-500.0,0.00049315,120]
[354879287,1740768640883,-500.0,0.00049315,120]
[354879289,1740768640895,-500.0,0.00049315,120]
[354879292,1740768640908,-500.0,0.00049315,120]
[354879294,1740768640921,-500.0,0.00049315,120]
[354879296,1740768640932,-500.0,0.00049315,120]
[354879298,1740768640944,-500.0,0.00049315,120]
[354879300,1740768640956,-500.0,0.00049315,120]
[354879302,1740768640968,-500.0,0.00049315,120]
[354879304,1740768640980,-500.0,0.00049315,120]
[354879305,1740768640995,-657.5,0.00049315,120]
[354879307,1740768641008,-500.0,0.00049315,120]
[354879309,1740768641019,-500.0,0.00049315,120]
[354879311,1740768641031,-500.0,0.00049315,120]
[354879313,1740768641043,-500.0,0.00049315,120]
[354879316,1740768641056,-500.0,0.00049315,120]
[354879318,1740768641070,-502.37414069,0.00049315,120]
[354879320,1740768641083,-500.0,0.00049315,120]
[354879322,1740768641097,-500.0,0.00049315,120]
[354879325,1740768641109,-500.0,0.00049315,7]
[354879327,1740768641122,-500.0,0.00049315,120]
[354879329,1740768641135,-635.59,0.00049315,120]
[354879331,1740768641148,-500.0,0.00049315,120]
[354879333,1740768641166,-501.58259781,0.00049315,120]
[354879335,1740768641178,-160.0,0.00049315,10]
[354879336,1740768641190,-500.0,0.00049315,120]